fUSD/lending_fUSD_20240909
["ID","MTS","AMOUNT","RATE_DAILY","PERIOD"]
[337599035,1725885038719,-23722.35011438,0.00013,2]
[337599037,1725885038730,-5979.78453988,0.00013,2]
[337599053,1725885038919,-41623.2,0.00013,2]
[337599054,1725885038931,-1851.28133172,0.00013,2]
[337599109,1725885039913,-153.68,0.00012512,2]
[337599110,1725885039922,-138.03877493,0.00012659,2]
[337599111,1725885040003,-15.64122507,0.00012659,2]
[337599112,1725885040013,-153.68,0.00012741,2]
[337599113,1725885040022,-153.68,0.00012741,2]
[337599114,1725885040032,-3645.062904,0.00012751,2]
[337599115,1725885040045,-1502.40055034,0.00012751,2]
[337599116,1725885040054,-153.68,0.0001287,2]
[337599117,1725885040064,-153.68,0.0001287,2]
[337599118,1725885040074,-51473.27096086,0.00013,2]
[337599119,1725885040087,-379.9422459,0.00013,2]
[337599120,1725885040100,-243646.79845588,0.00013,2]
[337599121,1725885040202,-5531.45,0.00013,2]
[337599122,1725885040219,-976.22792937,0.00013,2]
[337599123,1725885040230,-1832.89551806,0.00013,2]
[337599137,1725885043059,-889.57757689,0.00012913,2]
[337599138,1725885043069,-512.42242291,0.00013,2]
[337599139,1725885043079,-11013.0,0.00013,2]
[337599145,1725885046246,-694.85,0.00013,2]
[337599147,1725885096937,194.41,0.00010959,2]
[337599148,1725885215619,-1102.75835953,0.0001274,2]
[337599149,1725885215646,-1047.04605971,0.0001274,2]
[337599150,1725885215669,-11375.19558076,0.0001274,2]
[337599151,1725885226051,465.07,0.0001121,2]
[337599152,1725885360189,568.23068718,0.00025,60]
[337599153,1725885450712,4978.41399559,0.00028,120]
[337599154,1725885675714,151.86,0.00010959,2]
[337599155,1725885709535,250.0,0.00012375,2]
[337599156,1725885772712,403.2,0.0001223,2]
[337599157,1725885775460,441.81,0.00010312,2]
[337599158,1725885795910,626.14,0.00012208,2]
[337599159,1725885803535,4889.20272119,0.00012208,2]
[337599160,1725885803564,2422.50065288,0.00012208,2]
[337599161,1725885803596,1852.66662593,0.00012208,2]
[337599165,1725885960289,250.0,0.00012181,2]
[337599166,1725886048719,203.62,0.00012347,2]
[337599167,1725886084263,750.0,0.00011,2]
[337599168,1725886123269,169.08,0.00012209,2]
[337599171,1725886232186,-150.24,0.00012556,2]
[337599172,1725886232202,-215.11210606,0.00012576,2]
[337599173,1725886232217,-226.69789394,0.00012576,2]
[337599174,1725886232226,-150.0,0.00012712,2]
[337599175,1725886232236,-247.06014866,0.00012739,2]
[337599176,1725886232245,-150.0,0.00012739,2]
[337599177,1725886232254,-185.657,0.0001274,2]
[337599178,1725886232264,-626.335,0.0001274,2]
[337599179,1725886232273,-150.24,0.00012889,2]
[337599180,1725886232282,-150.24,0.00012889,2]
[337599181,1725886232291,-150.24,0.0001289,2]
[337599182,1725886232301,-150.24,0.0001289,2]
[337599183,1725886232310,-150.24,0.0001289,2]
[337599184,1725886232320,-138.9334334,0.0001289,2]
[337599185,1725886232332,-11.3065666,0.0001289,2]
[337599186,1725886232342,-2049.9978,0.00012899,2]
[337599187,1725886232351,-1938.6956334,0.00012899,2]
[337599188,1725886232377,-1649.09184316,0.00012899,2]
[337599189,1725886232388,-911.28782344,0.00012899,2]
[337599190,1725886232397,-2631.7714,0.000129,2]
[337599191,1725886232405,-10986.7987,0.000129,2]
[337599192,1725886232414,-8053.9685,0.000129,2]
[337599193,1725886232423,-658.0173,0.000129,2]
[337599194,1725886232432,-1000.0,0.000129,2]
[337599195,1725886232442,-2511.5995,0.000129,2]
[337599196,1725886232451,-1636.9819,0.000129,2]
[337599198,1725886232759,-12225.3308,0.000129,2]
[337599199,1725886232771,-4252.0117,0.000129,2]
[337599200,1725886232780,-582.02355509,0.000129,2]
[337599201,1725886232793,-24.42354491,0.000129,2]
[337599202,1725886232803,-183.92880908,0.000129,2]
[337599203,1725886232814,-1617.12,0.000129,2]
[337599204,1725886232824,-499.99,0.000129,2]
[337599205,1725886232832,-299.99,0.000129,2]
[337599206,1725886232842,-350.30755771,0.000129,2]
[337599207,1725886232851,-162.72061766,0.000129,2]
[337599208,1725886232862,-3522.45236378,0.000129,2]
[337599209,1725886232872,-269.54535019,0.000129,2]
[337599210,1725886232887,-552.5,0.000129,2]
[337599211,1725886232898,-397.92779334,0.000129,2]
[337599212,1725886232912,-1869.69685647,0.000129,2]
[337599213,1725886232922,-2743.12725818,0.000129,2]
[337599214,1725886232934,-643.14831993,0.000129,2]
[337599215,1725886232944,-505.63457154,0.00012973,2]
[337599216,1725886232953,-296.73429,0.0001299,2]
[337599217,1725886232963,-1136.862,0.00013,2]
[337599218,1725886232973,-542.89125597,0.00013,2]
[337599219,1725886232984,-478.59396333,0.00013,2]
[337599220,1725886233789,-719.4241955,0.00013,2]
[337599221,1725886233801,-2314.61,0.00013,2]
[337599222,1725886238106,-210.7117136,0.000129,4]
[337599223,1725886238115,-500.0,0.00012973,2]
[337599224,1725886238125,-552.64916534,0.00013,2]
[337599225,1725886238136,-1328.28208,0.00013,2]
[337599226,1725886238148,-283.02522603,0.00013,2]
[337599227,1725886238159,-274.27572277,0.00013,2]
[337599228,1725886238170,-2283.51462282,0.00013,2]
[337599229,1725886238181,-311.07777664,0.00013,2]
[337599230,1725886238200,-3400.0,0.00013,2]
[337599231,1725886238212,-1101.02903969,0.00013,2]
[337599232,1725886238223,-51749.44334765,0.00013,2]
[337599233,1725886238235,-1503.75465679,0.00013,2]
[337599234,1725886238246,-1600.0,0.00013,2]
[337599235,1725886238257,-534.02114835,0.00013,2]
[337599236,1725886238312,-125237.0388803,0.00013,2]
[337599237,1725886238323,-2976.02181235,0.00013,2]
[337599238,1725886238334,-2879.43368562,0.00013,2]
[337599239,1725886238364,-324319.32609571,0.00013,2]
[337599240,1725886238375,-12608.96321469,0.00013,2]
[337599241,1725886238408,-424.88308538,0.00013,2]
[337599242,1725886238419,-1003.88535038,0.00013,2]
[337599243,1725886238430,-1003.91225001,0.00013,2]
[337599244,1725886238441,-667.57069182,0.00013,2]
[337599245,1725886238453,-32234.58733742,0.00013,2]
[337599246,1725886238464,-500.0,0.00013,2]
[337599247,1725886238482,-1153.0,0.00013,2]
[337599248,1725886238493,-12759.24509833,0.00013,2]
[337599249,1725886238504,-2212.02777319,0.00013,2]
[337599250,1725886238515,-3742.70217563,0.00013,2]
[337599251,1725886238526,-3474.68373558,0.00013,2]
[337599252,1725886238537,-7082.35051429,0.00013,2]
[337599253,1725886238547,-729.17517403,0.00013,2]
[337599254,1725886238558,-475.82133345,0.00013,2]
[337599257,1725886240088,-491.28926175,0.00013,2]
[337599258,1725886240196,-1332.68018456,0.00013,2]
[337599259,1725886240207,-13063.5267873,0.00013,2]
[337599260,1725886240252,-920.57145271,0.00013,2]
[337599353,1725886243699,-276.897555,0.0001274,2]
[337599354,1725886246318,-567.73717,0.0001274,2]
[337599355,1725886260990,150.0,0.00012476,2]
[337599356,1725886261011,150.0,0.00012476,2]
[337599357,1725886261031,150.0,0.00012476,2]
[337599358,1725886261052,132.72,0.00012476,2]
[337599359,1725886293897,17.28,0.00010789,2]
[337599360,1725886293921,150.0,0.00010789,2]
[337599361,1725886293943,251.59,0.00010789,2]
[337599362,1725886378723,250.0,0.00012402,2]
[337599363,1725886423772,1000.0,0.00012352,2]
[337599364,1725886436217,9753.35,0.00012,2]
[337599365,1725886481285,250.0,0.0001244,2]
[337599366,1725886530845,20596.13,0.00012487,2]
[337599367,1725886551859,203.62,0.00012442,2]
[337599376,1725886811543,397.92,0.00010784,2]
[337599377,1725886892499,500.0,0.00011163,2]
[337599378,1725886892530,500.0,8.971e-05,2]
[337599379,1725886892615,500.0,0.00011163,2]
[337599380,1725886892792,500.0,0.00010067,2]
[337599381,1725886894247,500.0,0.00011711,2]
[337599382,1725886903329,-421.39411001,0.00012631,2]
[337599383,1725886903361,-500.0,0.00012685,2]
[337599384,1725886903384,-500.0,0.00012685,2]
[337599385,1725886903406,-500.0,0.00012685,2]
[337599386,1725886903428,-500.0,0.00012685,2]
[337599387,1725886903451,-500.0,0.00012685,2]
[337599388,1725886903474,-500.0,0.00012685,2]
[337599389,1725886903495,-500.0,0.00012685,2]
[337599390,1725886903517,-421.53586359,0.00012685,2]
[337599391,1725886903539,-193.95289675,0.0001274,2]
[337599392,1725886903560,-500.0,0.00012807,2]
[337599393,1725886903583,-150.0,0.00012899,2]
[337599394,1725886903610,-12219.9045,0.000129,2]
[337599395,1725886903632,-22763.21262965,0.000129,2]
[337599396,1725886930930,200.0,0.00012483,2]
[337599398,1725886991641,500.0,8.971e-05,2]
[337599399,1725886993142,500.0,0.00011711,2]
[337599400,1725886997179,500.0,0.00011163,2]
[337599401,1725886999902,500.0,8.971e-05,2]
[337599403,1725887001480,500.0,0.00010341,2]
[337599406,1725887085779,203.62,0.00012331,2]
[337599455,1725887423335,444.48,0.00010436,2]
[337599468,1725887432727,-500.0,0.00012533,2]
[337599469,1725887432736,-444.48,0.000127,2]
[337599470,1725887432746,-251.47900221,0.00012799,2]
[337599471,1725887432755,-3656.1561169,0.000128,2]
[337599472,1725887432802,-850.43371421,0.000128,2]
[337599473,1725887432812,-500.0,0.00012877,2]
[337599474,1725887432821,-150.0,0.00012899,2]
[337599475,1725887432836,-7882.70375543,0.000129,2]
[337599476,1725887432852,-1000.37172,0.000129,2]
[337599477,1725887432864,-7296.30719492,0.000129,2]
[337599478,1725887432873,-4513.4936,0.000129,2]
[337599479,1725887432882,-1000.0,0.000129,2]
[337599480,1725887432892,-8948.00234256,0.000129,2]
[337599481,1725887432908,-2507.2,0.000129,2]
[337599482,1725887432919,-939.2,0.000129,2]
[337599483,1725887432931,-2204.11316089,0.000129,2]
[337599485,1725887438400,-10245.42269655,0.000129,2]
[337599486,1725887438414,-382.1335,0.000129,2]
[337599487,1725887438423,-145.00064229,0.000129,2]
[337599488,1725887438510,-1500.0,0.000129,2]
[337599489,1725887438541,-120.25645771,0.000129,2]
[337599490,1725887438550,-116103.72364071,0.000129,2]
[337599501,1725887438689,-20069.18729189,0.000129,2]
[337599601,1725887440404,-42201.7890674,0.000129,2]
[337599602,1725887440414,-12225.3308,0.000129,2]
[337599603,1725887440424,-500.0,0.000129,2]
[337599604,1725887440434,-350.30755771,0.000129,2]
[337599605,1725887440443,-557.0,0.00012948,2]
[337599606,1725887440453,-811.0,0.00012948,2]
[337599607,1725887440463,-931.0,0.00012948,2]
[337599608,1725887440473,-1900.0,0.00012948,2]
[337599609,1725887440483,-553.0,0.00012948,2]
[337599610,1725887440493,-3343.0,0.00012948,2]
[337599611,1725887440503,-805.0,0.00012948,2]
[337599612,1725887440515,-1119.0,0.00012948,2]
[337599613,1725887440525,-1921.0,0.00012948,2]
[337599614,1725887440535,-248.0,0.00012948,2]
[337599615,1725887440544,-499.99,0.00012973,2]
[337599616,1725887440553,-494.36542846,0.00012973,2]
[337599617,1725887440563,-250.0,0.00012978,2]
[337599618,1725887440573,-153.81,0.0001299,2]
[337599619,1725887440582,-502.63307486,0.00012999,2]
[337599620,1725887440592,-500.0,0.00012999,2]
[337599621,1725887440601,-299.99,0.00012999,2]
[337599622,1725887440610,-150.99,0.00012999,2]
[337599623,1725887440620,-1170.0,0.00013,2]
[337599624,1725887440630,-692844.17439992,0.00013,2]
[337599625,1725887440640,-4150080.86997834,0.00013,2]
[337599626,1725887440649,-3296544.13031289,0.00013,2]
[337599627,1725887440675,-10184.53535642,0.00013,2]
[337599628,1725887440686,-217710.0,0.00013,2]
[337599630,1725887440706,-1110.163932,0.00013,2]
[337599635,1725887440742,-1542.50000025,0.00013,2]
[337599638,1725887440758,-14227.75,0.00013,2]
[337599808,1725887443643,-9345.64405231,0.00013,2]
[337599809,1725887443662,-822.65202,0.00013,2]
[337599811,1725887446463,-339.1225,0.00012523,2]
[337599812,1725887446633,-500.8775,0.00012523,2]
[337599813,1725887446643,-29104.1225,0.00013,2]
[337599814,1725887503722,187.36,0.00010959,2]
[337599815,1725887503746,318.74,0.00010959,2]
[337599816,1725887519410,500.0,0.00011163,2]
[337599817,1725887552000,500.0,0.00010958,2]
[337599818,1725887554199,500.0,0.00012328,2]
[337599819,1725887555026,500.0,9.862e-05,2]
[337599820,1725887578898,500.0,8.766e-05,2]
[337599821,1725887580986,500.0,0.00011506,2]
[337599822,1725887628118,500.0,0.00010958,2]
[337599823,1725887656997,250.0,0.00012205,2]
[337599824,1725887835922,250.0,0.00012355,2]
[337599825,1725887842646,1434.37396745,0.00012,2]
[337599826,1725887908675,750.0,0.00011,2]
[337599827,1725887914357,419.14,0.00010437,2]
[337599828,1725887964451,328.0,0.0001227,2]
[337599829,1725887969732,169.08,0.0001227,2]
[337599830,1725887985313,194.41,0.00010959,2]
[337599831,1725888157077,203.63,0.0001217,2]
[337599832,1725888177131,250.0,0.0001217,2]
[337599843,1725888465888,398.18,0.0001018,2]
[337599844,1725888465995,398.18,0.00012444,2]
[337599846,1725888476210,169.1,0.00012098,2]
[337599854,1725888546547,153.94,0.00010959,2]
[337599873,1725888581077,250.0,0.00012099,2]
[337599888,1725888631550,-263.18,0.00012592,2]
[337599889,1725888631559,-432.48536868,0.00012602,2]
[337599890,1725888631568,-1020.87683803,0.0001274,2]
[337599891,1725888631577,-1182.73966793,0.0001274,2]
[337599892,1725888631587,-263.18,0.00012789,2]
[337599893,1725888631595,-263.18,0.0001279,2]
[337599894,1725888631605,-263.18,0.0001279,2]
[337599895,1725888631614,-263.18,0.0001279,2]
[337599896,1725888631623,-263.18,0.0001279,2]
[337599897,1725888631632,-263.18,0.0001279,2]
[337599898,1725888631641,-263.18,0.0001279,2]
[337599899,1725888631651,-263.18,0.00012792,2]
[337599900,1725888631662,-150.0,0.00012799,2]
[337599901,1725888631671,-1260.3533,0.000128,2]
[337599902,1725888631682,-2950.6643,0.000128,2]
[337599903,1725888631691,-457.2648,0.000128,2]
[337599904,1725888631701,-12209.0519,0.000128,2]
[337599905,1725888631710,-150.0,0.00012802,2]
[337599906,1725888631719,-4047.02,0.00012802,2]
[337599907,1725888631729,-171.94,0.0001281,2]
[337599908,1725888631738,-499.99,0.0001281,2]
[337599909,1725888631747,-500.0,0.00012877,2]
[337599910,1725888631756,-703.742,0.00012877,2]
[337599911,1725888631766,-151.833,0.00012877,2]
[337599912,1725888631775,-5271.346074,0.000129,2]
[337599913,1725888631785,-5041.63044662,0.000129,2]
[337599914,1725888631796,-500.0,0.00012973,2]
[337599915,1725888631806,-461.16065041,0.00012973,2]
[337599916,1725888631815,-5277.53835378,0.00012999,2]
[337599917,1725888631824,-1664.80472325,0.00012999,2]
[337599918,1725888631834,-1000.0,0.00012999,2]
[337599919,1725888631843,-1918.51675438,0.00013,2]
[337599920,1725888631915,-263.18,0.00012867,2]
[337599921,1725888631924,-292.26,0.00013,2]
[337599926,1725888637447,-1759.48135128,0.00013,2]
[337599927,1725888637467,-2852.38436042,0.00013,2]
[337599928,1725888637483,-8422.14027008,0.00013,2]
[337599929,1725888637544,-343.85707999,0.00013,2]
[337599930,1725888637620,-23786.8659421,0.00013,2]
[337599931,1725888637635,-6536.11241892,0.00013,2]
[337599964,1725888638016,-398.82036052,0.00013,2]
[337600173,1725888640264,-252.86068553,0.00013,2]
[337600714,1725888645722,-55189.47182364,0.00013,2]
[337600717,1725888645734,-2791.55838297,0.00013,2]
[337601252,1725888666973,1204.0,0.000125,5]
[337601254,1725888869658,3120.08,0.00012314,2]
[337601255,1725888875049,23900.0,0.00012314,2]
[337601256,1725888934965,768.83,0.00012345,2]
[337601257,1725888956248,402.2,0.00010434,2]
[337601258,1725889028707,332.36,0.00012232,2]
[337601259,1725889072044,250.0,0.00012231,2]
[337601264,1725889238399,350.13,0.00012253,2]
[337601265,1725889240464,250.0,0.00012253,2]
[337601266,1725889294382,3491.16,0.00012299,2]
[337601267,1725889297510,2627.81385186,0.00025,60]
[337601268,1725889336845,-164.48,0.0001253,2]
[337601269,1725889336865,-164.48,0.0001253,2]
[337601270,1725889336885,-164.48,0.0001253,2]
[337601271,1725889336905,-4506.56,0.0001254,2]
[337601272,1725889364411,-4339.0,0.0001254,2]
[337601273,1725889364433,-402.2,0.00012698,2]
[337601274,1725889364454,-500.0,0.00012877,2]
[337601275,1725889364475,-164.48,0.00012889,2]
[337601276,1725889364496,-633.03266898,0.0001289,2]
[337601277,1725889364516,-164.48,0.0001289,2]
[337601278,1725889364537,-164.48,0.0001289,2]
[337601279,1725889364557,-164.48,0.0001289,2]
[337601280,1725889364578,-150.0,0.00012898,2]
[337601281,1725889364598,-635.055,0.00012899,2]
[337601282,1725889364619,-182.943,0.00012899,2]
[337601283,1725889364640,-1299.84933102,0.00012899,2]
[337601284,1725889384074,1000.0,0.00012441,2]
[337601286,1725889413722,5000.0,0.00025,60]
[337601287,1725889446210,-8700.14066898,0.00012899,2]
[337601288,1725889446230,-1299.85933102,0.000129,2]
[337601289,1725889447628,-8958.56956898,0.000129,2]
[337601290,1725889447648,-220.26073675,0.000129,2]
[337601291,1725889447669,-821.16969427,0.000129,2]
[337601292,1725889448922,-9376.78850573,0.000129,2]
[337601293,1725889448942,-623.21149427,0.000129,2]
[337601294,1725889449081,-48.49080573,0.000129,2]
[337601295,1725889449102,-9951.50919427,0.000129,2]
[337601296,1725889449180,-48.49080673,0.000129,2]
[337601297,1725889449201,-1130.47609,0.000129,2]
[337601298,1725889449222,-5364.00127479,0.000129,2]
[337601299,1725889449242,-3457.03182848,0.000129,2]
[337601300,1725889449456,-1460.76676728,0.000129,2]
[337601301,1725889449477,-1130.47609,0.0001297,2]
[337601302,1725889449497,-454.37642247,0.00012973,2]
[337601303,1725889449517,-6954.38072025,0.0001299,2]
[337601304,1725889449728,-10000.0,0.0001299,2]
[337601305,1725889450305,-10000.0,0.0001299,2]
[337601306,1725889450552,-10000.0,0.0001299,2]
[337601307,1725889451009,-10000.0,0.0001299,2]
[337601308,1725889452476,-10000.0,0.0001299,2]
[337601309,1725889453133,-10000.0,0.0001299,2]
[337601310,1725889453371,-10000.0,0.0001299,2]
[337601311,1725889453856,-10000.0,0.0001299,2]
[337601312,1725889454283,-10000.0,0.0001299,2]
[337601313,1725889454698,-10000.0,0.0001299,2]
[337601314,1725889455097,-10000.0,0.0001299,2]
[337601315,1725889455562,-10000.0,0.0001299,2]
[337601316,1725889455956,-10000.0,0.0001299,2]
[337601317,1725889456498,-10000.0,0.0001299,2]
[337601318,1725889456779,-10000.0,0.0001299,2]
[337601319,1725889457189,-10000.0,0.0001299,2]
[337601320,1725889457597,-10000.0,0.0001299,2]
[337601321,1725889458121,-10000.0,0.0001299,2]
[337601322,1725889458475,-10000.0,0.0001299,2]
[337601323,1725889462301,-1000.0,0.000129,2]
[337601324,1725889462321,-9000.0,0.0001299,2]
[337601325,1725889462768,-10000.0,0.0001299,2]
[337601326,1725889463671,-10000.0,0.0001299,2]
[337601327,1725889471644,370.81,0.00010626,2]
[337601328,1725889477723,-370.81,0.0001289,2]
[337601329,1725889477742,-7296.19,0.0001299,2]
[337601330,1725889496495,9699.5554,0.0001243,2]
[337601332,1725889628154,250.0,0.00012419,2]
[337601333,1725889735216,750.0,0.00011,2]
[337601388,1725889766183,175.06,0.00012387,2]
[337601389,1725889782207,250.0,0.00012424,2]
[337601391,1725889831773,-166.2,0.00012593,2]
[337601392,1725889831782,-283.837073,0.000128,2]
[337601393,1725889831794,-3078.55932045,0.000128,2]
[337601394,1725889831805,-3099.91875805,0.000128,2]
[337601395,1725889831816,-368.7704374,0.000128,2]
[337601396,1725889831827,-871.9144111,0.000128,2]
[337601397,1725889831836,-239.48505,0.0001287,2]
[337601398,1725889831845,-500.0,0.00012877,2]
[337601399,1725889831854,-1729.318,0.000129,2]
[337601400,1725889831863,-4827.60114732,0.000129,2]
[337601401,1725889831873,-150.0,0.00012959,2]
[337601402,1725889831882,-150.0,0.00012989,2]
[337601403,1725889831891,-68477.54787293,0.0001299,2]
[337601404,1725889831900,-150.01,0.00012999,2]
[337601405,1725889831909,-3239.03501071,0.00012999,2]
[337601406,1725889831918,-500.0,0.00012999,2]
[337601407,1725889831927,-500.0,0.00012999,2]
[337601408,1725889831936,-500.0,0.00012999,2]
[337601409,1725889831946,-500.0,0.00012999,2]
[337601410,1725889831955,-500.0,0.00012999,2]
[337601411,1725889831964,-500.0,0.00012999,2]
[337601412,1725889831974,-500.0,0.00012999,2]
[337601413,1725889831983,-500.0,0.00012999,2]
[337601414,1725889831993,-500.0,0.00012999,2]
[337601416,1725889832003,-521.61785093,0.00012999,2]
[337601417,1725889832013,-500.0,0.00012999,2]
[337601418,1725889832022,-337.415803,0.00012999,2]
[337601419,1725889832032,-500.0,0.00012999,2]
[337601420,1725889832041,-500.0,0.00012999,2]
[337601421,1725889832050,-500.0,0.00012999,2]
[337601423,1725889832059,-500.0,0.00012999,2]
[337601425,1725889832069,-500.0,0.00012999,2]
[337601426,1725889832079,-500.0,0.00012999,2]
[337601427,1725889832089,-500.0,0.00012999,2]
[337601428,1725889832098,-500.0,0.00012999,2]
[337601429,1725889832107,-500.0,0.00012999,2]
[337601430,1725889832118,-500.0,0.00012999,2]
[337601431,1725889832127,-500.0,0.00012999,2]
[337601432,1725889832136,-225.69043252,0.00012999,2]
[337601433,1725889832145,-500.0,0.00012999,2]
[337601434,1725889832155,-500.0,0.00012999,2]
[337601435,1725889832165,-500.0,0.00012999,2]
[337601436,1725889832174,-500.0,0.00012999,2]
[337601437,1725889832186,-500.0,0.00012999,2]
[337601438,1725889832196,-500.0,0.00012999,2]
[337601439,1725889832205,-205.94253811,0.00012999,2]
[337601440,1725889832215,-500.0,0.00012999,2]
[337601441,1725889832225,-500.0,0.00012999,2]
[337601442,1725889832235,-500.0,0.00012999,2]
[337601443,1725889832244,-500.0,0.00012999,2]
[337601444,1725889832254,-500.0,0.00012999,2]
[337601445,1725889832263,-500.0,0.00012999,2]
[337601446,1725889832273,-500.0,0.00012999,2]
[337601447,1725889832282,-500.0,0.00012999,2]
[337601448,1725889832291,-887.81,0.00013,2]
[337601449,1725889832300,-1185.0,0.00013,2]
[337601450,1725889832310,-61022.5378789,0.00013,2]
[337601451,1725889832341,-4250.50142563,0.00013,2]
[337601452,1725889832352,-5003.70250805,0.00013,2]
[337601453,1725889832369,-2375.16069498,0.00013,2]
[337601454,1725889832380,-3244.15518752,0.00013,2]
[337601455,1725889832390,-4318.1251668,0.00013,2]
[337601456,1725889832402,-4054.52126582,0.00013,2]
[337601457,1725889832413,-4796.58478385,0.00013,2]
[337601458,1725889832424,-2125.59593354,0.00013,2]
[337601459,1725889832436,-297.99594133,0.00013,2]
[337601460,1725889832447,-31255.64096234,0.00013,2]
[337601461,1725889832458,-6056.60837724,0.00013,2]
[337601462,1725889832469,-1117.22136038,0.00013,2]
[337601463,1725889832514,-3185.02759438,0.00013,2]
[337601464,1725889832525,-4066.53555777,0.00013,2]
[337601465,1725889832536,-11316.72602082,0.00013,2]
[337601466,1725889832547,-261.15578167,0.00013,2]
[337601467,1725889832558,-517.85068696,0.00013,2]
[337601469,1725889837670,-257.82237684,0.00013,2]
[337601470,1725889837684,-1041.07666733,0.00013,2]
[337601471,1725889837695,-565.0863995,0.00013,2]
[337601472,1725889837707,-28119.1141531,0.00013,2]
[337601473,1725889837718,-1173.65274454,0.00013,2]
[337601474,1725889837730,-4538.33381839,0.00013,2]
[337601475,1725889837750,-280.407,0.00013,2]
[337601476,1725889837761,-486.81726003,0.00013,2]
[337601477,1725889837773,-368.6898118,0.00013,2]
[337601478,1725889837785,-716.53939924,0.00013,2]
[337601479,1725889837796,-303.35364713,0.00013,2]
[337601480,1725889837808,-55498.09177121,0.00013,2]
[337601481,1725889837829,-6904.82972179,0.00013,2]
[337601482,1725889837841,-21049.79701956,0.00013,2]
[337601483,1725889837853,-10441.17998013,0.00013,2]
[337601484,1725889837864,-200604.30330072,0.00013,2]
[337601485,1725889837875,-363.36826249,0.00013,2]
[337601486,1725889837887,-7544.50302701,0.00013,2]
[337601501,1725889838208,-16602.28958187,0.00013,2]
[337601504,1725889838232,-301.11415239,0.00013,2]
[337601509,1725889838276,-426.35735425,0.00013,2]
[337601511,1725889838287,-767.54721912,0.00013,2]
[337601528,1725889838453,-2074.50000001,0.00013,2]
[337601547,1725889839771,-4439.59627426,0.00013,2]
[337601548,1725889839783,-1226.66149548,0.00013,2]
[337601549,1725889839794,-26562.30521915,0.00013,2]
[337601551,1725889840161,-1.4093096,0.00013,2]
[337601554,1725889840187,-306.5521575,0.00013,2]
[337601556,1725889840198,-1730.32425122,0.00013,2]
[337601558,1725889840209,-284.1444,0.00013,2]
[337601560,1725889840220,-10352.58655339,0.00013,2]
[337601578,1725889840387,-1685424.68083816,0.00013,2]
[337601580,1725889840396,-2553325.2481966,0.00013,2]
[337601582,1725889840406,-1623.61032108,0.00013,2]
[337601584,1725889840415,-25000.0,0.00013,2]
[337601586,1725889840424,-2000.0,0.00013,2]
[337601588,1725889840433,-200.0,0.00013,2]
[337601590,1725889840443,-653.13,0.00013,2]
[337601592,1725889840451,-200.0,0.00013,2]
[337601594,1725889840461,-3095.38,0.00013,2]
[337601596,1725889840470,-800.0,0.00013,2]
[337601598,1725889840479,-40557.3759166,0.00013073,2]
[337601600,1725889840489,-499.99,0.00013073,2]
[337601602,1725889840498,-1997.2,0.00013073,2]
[337601604,1725889840507,-279.0,0.00013082,2]
[337601606,1725889840517,-4827.60114731,0.00013099,2]
[337601608,1725889840526,-2000.0,0.0001313,2]
[337601610,1725889840535,-200.0,0.0001313,2]
[337601612,1725889840545,-200.0,0.0001313,2]
[337601614,1725889840554,-153.0,0.00013148,2]